bitfinex-derivatives/quotes_ETHF0:USTF0_20250614
["timestamp","ask_amount","ask_price","bid_price","bid_amount"]
[1749940229057,0.79078,2528.2,2528.1,0.6504]
[1749940229259,0.79078,2528.2,2528.1,31.0364]
[1749940229450,0.79078,2528.2,2528.1,0.6504]
[1749940229753,0.79078,2528.2,2528.1,24.7934]
[1749940230154,0.79078,2528.2,2528.1,0.6504]
[1749940230857,0.79078,2528.2,2528.1,24.7934]
[1749940231260,0.79084,2528.0,2527.9,0.0059285]
[1749940231558,0.79084,2528.0,2527.9,24.1489285]
[1749940232351,0.79084,2528.0,2527.9,24.9397985]
[1749940232657,0.79084,2528.0,2527.9,0.0059285]
[1749940233359,1.45644,2528.0,2527.9,0.0059285]
[1749940233545,2.79874,2528.0,2527.9,0.0059285]
[1749940234447,6.99104588,2528.0,2527.9,0.0059285]
[1749940236352,0.79099,2527.5,2527.4,23.916]
[1749940236547,1.97742,2527.6,2527.3,9.4508]
[1749940236756,1.47093,2527.4,2527.3,27.3508]
[1749940237353,1.47093,2527.4,2527.3,27.3528]
[1749940237553,0.79112,2527.1,2527.0,3.8396]
[1749940237951,0.79116,2527.0,2526.8,10.49757662]
[1749940238157,0.6446,2527.0,2526.7,0.6744]
[1749940238455,0.79124,2526.8,2526.7,24.93624]
[1749940238653,0.6446,2527.0,2526.7,24.145]
[1749940238854,0.6446,2527.0,2526.8,0.79119]
[1749940239059,0.6446,2527.0,2526.8,0.6744]
[1749940239359,0.79118,2526.9,2526.8,0.6744]
[1749940239761,0.79121,2526.8,2526.7,24.93623]
[1749940240152,0.79125,2526.7,2526.6,4.67347]
[1749940240352,0.79125,2526.7,2526.6,3.2078]
[1749940240861,0.79125,2526.7,2526.6,27.3548]
[1749940241064,0.79125,2526.7,2526.6,3.2078]
[1749940241256,0.79128,2526.6,2526.5,0.6449]
[1749940241456,0.79128,2526.6,2526.5,24.7919]
[1749940241756,0.79134,2526.5,2526.3,7.03635]
[1749940241957,1.43324,2526.5,2526.4,24.147]
[1749940242158,1.43324,2526.5,2526.4,24.93834]
[1749940242361,1.43324,2526.5,2526.4,24.147]
[1749940242551,0.6419,2526.5,2526.4,24.93834]
[1749940242756,1.43321,2526.5,2526.4,24.93834]
[1749940243056,1.43321,2526.5,2526.4,0.79134]
[1749940243265,3.8497,2526.5,2525.9,3.2078]
[1749940243564,0.79146,2526.0,2525.9,3.2078]
[1749940243963,0.79146,2526.0,2525.8,1.47072]
[1749940244160,0.79143,2526.1,2525.9,0.79149]
[1749940244355,0.0059285,2526.2,2525.8,24.8292]
[1749940244666,0.7973285,2526.2,2526.1,0.79143]
[1749940246768,0.7973285,2526.2,2526.0,1.46585]
[1749940246769,0.79143,2526.1,2526.0,1.46585]
[1749940246969,0.7973485,2526.2,2526.1,0.79143]
[1749940247266,0.79143,2526.1,2526.0,1.46584]
[1749940248165,0.79143,2526.1,2526.0,0.6744]
[1749940248759,0.79143,2526.1,2526.0,1.46586]
[1749940249068,0.79143,2526.1,2526.0,0.6744]
[1749940249766,0.79146,2526.0,2525.9,28.15127]
[1749940250668,0.79146,2526.0,2525.9,27.3618]
[1749940251463,0.79146,2526.0,2525.9,28.1533]
[1749940251665,0.79146,2526.0,2525.9,27.3618]
[1749940252166,0.79146,2526.0,2525.9,28.1533]
[1749940252759,0.79146,2526.0,2525.9,24.9455]
[1749940254064,0.79146,2526.0,2525.9,24.154]
[1749940254269,0.7915,2525.9,2525.8,1.349]
[1749940254561,0.7915,2525.9,2525.8,0.6792]
[1749940254768,0.7915,2525.9,2525.8,25.62673]
[1749940255266,0.7915,2525.9,2525.8,24.8352]
[1749940255757,0.7915,2525.9,2525.8,25.62671]
[1749940256065,0.7915,2525.9,2525.8,24.8352]
[1749940256266,0.7915,2525.9,2525.8,25.62673]
[1749940256467,0.7915,2525.9,2525.8,0.6792]
[1749940258166,0.79156,2525.7,2525.6,3.99937]
[1749940258363,1.36,2525.8,2525.5,6.243]
[1749940258571,0.79159,2525.6,2525.5,31.19262]
[1749940259363,0.79162,2525.5,2525.4,0.79163]
[1749940259763,0.79161,2525.6,2525.5,0.7916]
[1749940261367,0.79164,2525.5,2525.4,0.79163]
[1749940261571,0.79164,2525.5,2525.4,0.79165]
[1749940262267,0.79164,2525.5,2525.3,3.877]
[1749940262470,0.79164,2525.5,2525.4,0.79164]
[1749940263469,0.79165,2525.4,2525.3,3.99948]
[1749940263669,0.79165,2525.4,2525.1,6.244]
[1749940263670,0.79177,2525.1,2525.0,3.2078]
[1749940263870,0.79177,2525.1,2525.0,0.79178]
[1749940264374,3.36777,2525.4,2524.9,25.4782]
[1749940264669,0.79209,2524.0,2523.9,3.2078]
[1749940264869,0.00594048,2524.2,2524.1,0.79206]
[1749940265462,0.00594048,2524.2,2524.1,2.16116]
[1749940266070,0.00594048,2524.2,2524.1,25.00906]
[1749940266378,0.79217,2523.8,2523.2,3.2078]
[1749940266671,15.43524697,2524.2,2523.6,0.79221]
[1749940266672,1.9811,2524.1,2523.6,0.79221]
[1749940266969,0.00594048,2524.2,2524.1,0.79206]
[1749940267167,0.00594048,2524.2,2524.1,26.37566]
[1749940267470,0.00594048,2524.2,2524.1,27.74476]
[1749940268273,0.00594048,2524.2,2524.1,26.39066]
[1749940269563,0.00594048,2524.2,2524.1,26.38866]
[1749940272073,0.00594048,2524.2,2524.0,3.2078]
[1749940272275,0.79206,2524.1,2523.9,0.79211]
[1749940272476,1.2735,2524.1,2523.8,0.79215]
[1749940272978,0.79211,2524.0,2523.7,24.274]
[1749940273180,0.79217,2523.8,2523.7,0.79217]
[1749940273480,0.79219,2523.7,2523.6,4.00002]
[1749940273672,2.06569,2523.7,2523.6,4.00002]
[1749940273878,1.2735,2523.7,2523.6,4.00002]
[1749940274073,3.2078,2524.0,2523.9,0.79212]
[1749940274273,1.2596,2524.1,2524.0,0.79209]
[1749940274479,2.05169,2524.1,2523.6,5.82992]
[1749940274778,2.05169,2524.1,2524.0,0.79209]
[1749940275182,11.88152,2524.0,2522.8,2.3473112]
[1749940275379,6.2596,2524.1,2521.8,1.12457864]
[1749940275380,0.79275,2521.9,2521.8,1.12457864]
[1749940275570,0.79275,2521.9,2521.4,3.13612294]
[1749940275571,0.79305,2521.0,2520.6,6.82601515]
[1749940275776,4.00081,2521.1,2520.7,5.55640251]
[1749940275981,4.00081,2521.1,2520.7,10.0288882]
[1749940275982,3.2078,2521.1,2520.7,10.0288882]
[1749940276178,3.2078,2521.1,2520.8,5.47705948]
[1749940276384,4.0008,2521.1,2520.9,6.997]
[1749940276685,3.2078,2521.1,2520.9,12.47405948]
[1749940276983,3.2078,2521.1,2521.0,5.47705948]
[1749940277379,3.2078,2521.1,2521.0,8.61174517]
[1749940277578,4.0008,2521.1,2521.0,15.60874517]
[1749940277973,3.2078,2521.1,2521.0,15.60874517]
[1749940278180,3.2078,2521.1,2521.0,8.61174517]
[1749940278374,4.0008,2521.1,2521.0,15.60874517]
[1749940279783,4.0008,2521.1,2521.0,8.61174517]
[1749940279985,4.0008,2521.1,2521.0,15.61174517]
[1749940280179,4.0008,2521.1,2521.0,15.67983785]
[1749940280379,4.0008,2521.1,2521.0,7.06809268]
[1749940280686,4.0008,2521.1,2521.0,15.67983785]
[1749940280982,4.0008,2521.1,2521.0,2.68e-06]
[1749940281191,4.0008,2521.1,2520.2,0.6693]
[1749940281192,0.79338,2519.9,2519.8,7.0]
[1749940281379,0.79336,2520.0,2519.9,6.73585948]
[1749940281880,0.79336,2520.0,2519.9,9.87054517]
[1749940282085,3.21375274,2520.1,2519.9,14.87054517]
[1749940282285,4.00708274,2520.1,2520.0,5.47705948]
[1749940282686,4.00708274,2520.1,2520.0,8.61174517]
[1749940283388,0.79341,2519.8,2519.7,0.6528]
[1749940283589,4.00121,2519.8,2519.7,7.6548]
[1749940283788,4.00121,2519.8,2519.7,13.13185948]
[1749940284192,4.00121,2519.8,2519.3,1.3314]
[1749940284193,0.79354,2519.4,2519.3,1.3314]
[1749940284388,5.1914,2519.8,2519.5,3.64256948]
[1749940284389,0.79347,2519.6,2519.5,3.64256948]
[1749940284589,4.00134,2519.4,2519.3,10.13668569]
[1749940284786,4.00134,2519.4,2519.3,3.13468569]
[1749940284988,3.2078,2519.9,2519.3,41.48422517]
[1749940285194,0.79351,2519.5,2519.4,3.64256948]
[1749940285492,0.79351,2519.5,2519.4,4.97396948]
[1749940285684,0.79351,2519.5,2519.4,8.10865517]
[1749940285889,3.2078,2519.6,2519.4,40.69665517]
[1749940286091,4.00129,2519.6,2519.5,36.22256948]
[1749940286286,0.79351,2519.5,2519.4,3.64256948]
[1749940286494,0.79373,2518.8,2518.7,7.005]
[1749940286683,4.00153,2518.8,2518.7,10.64756948]
[1749940286884,4.00153,2518.8,2518.7,3.64256948]
[1749940287094,3.2078,2518.8,2518.7,6.77725517]
[1749940287397,3.2078,2519.2,2519.0,0.79364]
[1749940287697,3.2078,2519.2,2518.7,8.64256948]
[1749940287698,3.2078,2519.6,2519.1,3.64256948]
[1749940287992,0.79363,2519.1,2519.0,7.005]
[1749940288195,0.79362,2519.2,2518.8,10.64956948]
[1749940288388,3.2078,2519.3,2518.8,10.64956948]
[1749940288389,3.2078,2519.3,2518.9,10.64956948]
[1749940288589,3.2078,2519.3,2518.9,11.94236948]
[1749940288799,3.2078,2519.6,2519.2,3.64256948]
[1749940288991,4.00128,2519.6,2519.3,1.9618]
[1749940289289,3.2078,2519.6,2519.4,7.007]
[1749940289495,3.2078,2519.6,2519.5,4.43607948]
[1749940289684,3.2078,2519.6,2519.5,3.64256948]
[1749940289889,4.00127,2519.6,2519.5,3.64256948]
[1749940290695,3.2078,2519.9,2519.5,10.64956948]
[1749940290893,0.79343,2519.8,2519.6,3.64256948]
[1749940291092,4.00119,2519.9,2519.6,4.43603948]
[1749940291293,0.79341,2519.8,2519.7,3.64256948]
[1749940291596,4.0012,2519.9,2519.8,3.64256948]
[1749940291792,4.00121,2519.9,2519.6,4.43602948]
[1749940291998,3.2078,2519.9,2519.8,0.79341]
[1749940292199,3.2078,2519.9,2519.7,4.43599948]
[1749940292496,3.2078,2519.9,2519.8,0.79341]
[1749940292698,4.00118,2519.9,2519.8,3.64256948]
[1749940293591,3.2078,2519.9,2519.8,4.43597948]
[1749940293800,4.00118,2519.9,2519.8,3.64256948]
[1749940293995,3.2078,2519.9,2519.8,4.43597948]
[1749940294499,4.00118,2519.9,2519.8,3.71066216]
[1749940294693,4.00118,2519.9,2519.8,4.50407216]
[1749940294888,4.00118,2519.9,2519.8,3.71066216]
[1749940295088,0.00595274,2520.1,2519.8,3.71066216]
[1749940295089,0.00595274,2520.1,2520.0,0.79335]
[1749940295495,0.00595274,2520.1,2520.0,4.43591948]
[1749940295798,0.00595274,2520.1,2520.0,5.70731948]
[1749940296299,3.2078,2520.7,2520.6,0.79316]
[1749940296804,4.00093,2520.7,2520.6,3.64256948]
[1749940297495,3.2078,2520.7,2520.6,4.43572948]
[1749940297994,0.00595274,2520.9,2520.8,0.7931]
[1749940298202,0.00595274,2520.9,2520.8,37.05366948]
[1749940299390,0.00595274,2520.9,2520.8,38.44356948]
[1749940300094,0.00595274,2520.9,2520.8,43.44356948]
[1749940300999,0.79282,2521.7,2521.6,0.79283]
[1749940301197,0.79282,2521.7,2521.6,4.00063]
[1749940301198,0.79281,2521.7,2521.6,4.00063]
[1749940301398,0.79281,2521.7,2521.6,4.42944674]
[1749940301895,0.00595274,2521.9,2521.6,3.63661674]
[1749940302094,0.00595274,2521.9,2521.8,0.79275]
[1749940302295,0.00595274,2521.9,2521.8,33.79056674]
[1749940304902,0.00595274,2521.9,2521.8,0.83504113]
[1749940305100,0.00595274,2521.9,2521.8,33.40704113]
[1749940307299,0.79870274,2521.9,2521.8,0.42881674]
[1749940307603,1.90788069,2521.9,2521.8,0.42881674]
[1749940309401,1.90788069,2521.9,2521.8,1.22159674]
[1749940309804,1.90788069,2521.9,2521.8,0.42881674]
[1749940310502,1.90788069,2521.9,2521.8,25.98890942]
[1749940311113,0.79870274,2521.9,2521.8,25.98890942]
[1749940311803,0.00595274,2521.9,2521.8,26.78168942]
[1749940312210,0.79870274,2521.9,2521.8,26.78168942]
[1749940312410,0.00595274,2521.9,2521.8,26.78168942]
[1749940312608,0.79870274,2521.9,2521.8,0.49690942]
[1749940312818,0.79870274,2521.9,2521.8,33.00590942]
[1749940313007,0.00595274,2521.9,2521.8,33.79868942]
[1749940313406,0.79870274,2521.9,2521.8,33.79868942]
[1749940314202,0.00595274,2521.9,2521.8,33.79868942]
[1749940314505,3.8343,2522.5,2522.2,0.79264]
[1749940314811,0.79265,2522.3,2522.2,25.458]
[1749940315211,0.79265,2522.3,2522.2,25.88681674]
[1749940317614,0.79265,2522.3,2522.2,26.67947674]
[1749940318115,3.84025274,2522.5,2522.2,25.88681674]
[1749940318309,4.63284274,2522.5,2522.4,0.79259]
[1749940318509,4.63284274,2522.5,2522.3,1.22142674]
[1749940318510,0.79259,2522.4,2522.3,1.22142674]
[1749940318816,4.63281274,2522.5,2522.4,0.42881674]
[1749940319009,0.79259,2522.4,2522.3,0.42881674]
[1749940320108,0.79259,2522.4,2522.3,0.04229831]
[1749940320313,0.79266,2522.2,2522.1,7.028]
[1749940320514,0.79269,2522.1,2522.0,0.00595274]
[1749940320713,2.17939,2522.1,2522.0,0.04825105]
[1749940321108,2.17939,2522.1,2522.0,0.00595274]
[1749940321309,2.17939,2522.1,2522.0,0.00086187]
[1749940321310,3.26437955,2522.1,2522.0,0.00086187]
[1749940325718,3.26437955,2522.1,2522.0,0.06895455]
[1749940326215,3.26541839,2522.1,2522.0,0.06895455]
[1749940327515,0.79278,2521.8,2521.7,7.8208]
[1749940327714,1.87880839,2521.8,2521.7,33.1478]
[1749940327918,1.87880839,2521.8,2521.7,33.19009831]
[1749940328217,1.87880839,2521.8,2520.0,5.4227718]
[1749940328218,0.79305,2521.0,2520.9,0.79304]
[1749940328418,0.79302,2521.1,2521.0,0.79301]
[1749940328712,1.88098755,2521.1,2521.0,0.79301]
[1749940328916,1.88098755,2521.1,2521.0,0.83530831]
[1749940329620,1.08796755,2521.1,2521.0,0.83530831]
[1749940329927,1.88096755,2521.1,2521.0,26.16030831]
[1749940330511,1.88096755,2521.1,2521.0,26.14530831]
[1749940331820,1.88096755,2521.1,2521.0,26.21340099]
[1749940332319,0.793,2521.1,2521.0,26.21340099]
[1749940332712,6.87568655,2521.1,2521.0,0.06809268]
[1749940333018,0.7931,2520.8,2520.7,0.00595274]
[1749940333206,1.87574569,2520.8,2520.7,0.04825105]
[1749940333406,0.7931,2520.8,2520.7,0.04825105]
[1749940334720,0.7931,2520.8,2520.7,0.84138105]
[1749940335522,3.97734,2521.1,2521.0,0.79302]
[1749940335523,0.79302,2521.1,2521.0,0.79302]
[1749940335728,0.00595274,2521.2,2521.1,0.793]
[1749940336027,0.00595274,2521.2,2521.1,0.83529831]
[1749940336620,0.00595274,2521.2,2521.1,2.14359831]
[1749940339918,0.00595274,2521.2,2521.1,2.21169099]
[1749940341522,4.00065,2521.6,2521.5,0.79288]
[1749940341716,4.00065,2521.6,2521.5,26.08017831]
[1749940342622,0.79285,2521.6,2521.5,26.08017831]
[1749940343117,0.79875274,2521.8,2521.7,0.79281]
[1749940343520,0.79875274,2521.8,2521.7,0.83510831]
[1749940344120,0.00595274,2521.8,2521.7,0.83510831]
[1749940344627,0.00595274,2521.8,2521.7,2.16260831]
[1749940345316,0.79873274,2521.8,2521.7,2.16260831]
[1749940345518,0.00595274,2521.8,2521.7,2.16260831]
[1749940346314,0.00595274,2521.8,2521.7,9.05560831]
[1749940346728,0.79873274,2521.8,2521.7,9.05560831]
[1749940347331,0.00595274,2521.8,2521.7,9.05560831]
[1749940354430,0.00595274,2521.8,2521.7,14.05560831]
[1749940354631,3.2078,2522.4,2522.3,0.79263]
[1749940354835,4.29156299,2522.4,2522.3,25.90163]
[1749940355042,3.2078,2522.4,2522.3,25.94392831]
[1749940356338,4.00039,2522.4,2522.3,25.94392831]
[1749940356928,0.79259,2522.4,2522.3,25.94392831]
[1749940357333,0.79259,2522.4,2522.1,0.00595274]
[1749940357334,0.79266,2522.2,2522.1,0.00595274]
[1749940357628,5.08376328,2522.2,2522.1,0.00595274]
[1749940358028,0.79278,2521.8,2521.7,0.06809268]
[1749940358222,0.79278,2521.8,2521.7,25.089]
[1749940358426,0.79278,2521.8,2521.7,0.04229831]
[1749940358627,0.79278,2521.8,2521.7,25.12729831]
[1749940359024,0.79277,2521.9,2521.8,0.79277]
[1749940359334,0.79277,2521.9,2521.8,0.04229831]
[1749940359535,0.79278,2521.8,2521.7,25.94589268]
[1749940360130,0.79278,2521.8,2521.7,25.98819099]
[1749940362135,0.79276,2521.9,2521.8,0.79276]
[1749940362333,0.79278,2521.8,2521.7,25.94588268]
[1749940362832,0.79278,2521.8,2521.7,25.19539099]
[1749940363539,0.79278,2521.9,2521.8,0.79277]
[1749940363737,0.79278,2521.9,2521.8,0.83506831]
[1749940363939,0.79278,2521.9,2521.8,0.79277]
[1749940364536,1.8767285,2521.9,2521.8,0.79277]
[1749940365036,1.8767285,2521.9,2521.8,0.83506831]
[1749940367345,1.0839485,2521.9,2521.8,0.83506831]
[1749940367843,1.4541,2522.1,2522.0,0.79272]
[1749940368044,2.53935715,2522.1,2522.0,25.78972]
[1749940368239,2.53935715,2522.1,2522.0,25.83201831]
[1749940368540,1.87794715,2522.1,2522.0,25.83201831]
[1749940368741,0.79268,2522.2,2522.1,0.79269]
[1749940368938,1.8781814,2522.2,2522.1,0.83498831]
[1749940369139,1.0855014,2522.2,2522.1,0.83498831]
[1749940369337,1.44227,2522.5,2522.1,4.04278831]
[1749940369540,1.44227,2522.5,2522.4,0.79259]
[1749940369736,2.52770436,2522.5,2522.4,0.79259]
[1749940370041,2.52770436,2522.5,2522.4,0.04229831]
[1749940370241,2.52770436,2522.5,2522.4,0.83488831]
[1749940370437,2.52770436,2522.5,2522.4,0.04229831]
[1749940371140,2.52770436,2522.5,2522.4,0.83488831]
[1749940371334,2.52770436,2522.5,2522.4,0.04229831]
[1749940373146,2.52770436,2522.5,2522.4,0.83488831]
[1749940374741,2.52770436,2522.5,2522.4,0.04229831]
[1749940375239,2.52770436,2522.5,2522.4,0.83488831]
[1749940376341,1.08543436,2522.5,2522.4,0.04229831]
[1749940376544,0.00595274,2522.6,2522.5,0.79256]
[1749940376745,0.00595274,2522.6,2522.5,0.83485831]
[1749940377238,0.79848274,2522.6,2522.5,0.04229831]
[1749940377442,0.79269,2522.1,2522.0,0.06809268]
[1749940377843,1.87646476,2522.1,2522.0,0.06809268]
[1749940383050,1.08377476,2522.1,2522.0,0.90311099]
[1749940383553,0.79264,2522.3,2522.2,0.79264]
[1749940383756,1.87612659,2522.3,2522.2,0.79264]
[1749940384154,1.08348659,2522.3,2522.2,0.83493831]
[1749940384447,4.00039,2522.4,2522.3,0.79263]
[1749940384653,5.08418114,2522.4,2522.3,0.83492831]
[1749940386258,5.08432038,2522.4,2522.3,0.83492831]
[1749940386755,4.29173038,2522.4,2522.3,0.83492831]
[1749940387159,5.08432038,2522.4,2522.3,0.83492831]
[1749940388650,0.79269,2522.1,2522.0,6.78309268]
[1749940388856,1.8765242,2522.1,2522.0,0.06809268]
[1749940389054,5.0843242,2522.1,2522.0,0.06809268]
[1749940391460,5.08446529,2522.1,2522.0,0.06809268]
[1749940392458,1.08397529,2522.1,2522.0,0.90311099]
[1749940392855,3.2078,2522.5,2522.4,0.79259]
[1749940393149,5.08457637,2522.5,2522.4,0.79259]
[1749940393358,5.08457637,2522.5,2522.4,0.83488831]
[1749940393550,5.08457637,2522.5,2522.4,0.04229831]
[1749940394459,5.08457637,2522.5,2522.4,0.83488831]
[1749940394857,5.08457637,2522.5,2522.4,0.04229831]
[1749940395358,5.08457637,2522.5,2522.4,0.83488831]
[1749940395654,4.29201637,2522.5,2522.4,0.83488831]
[1749940395853,4.00036,2522.5,2522.4,0.83488831]
[1749940396054,5.08472498,2522.5,2522.4,0.83488831]
[1749940396254,5.08472498,2522.5,2522.4,0.04229831]
[1749940396455,0.79262,2522.3,2522.2,33.02004]
[1749940396655,0.79262,2522.3,2522.2,7.3574]
[1749940396956,0.79262,2522.3,2522.2,7.39969831]
[1749940397551,0.79262,2522.3,2522.2,8.19235831]
[1749940398766,1.87711148,2522.3,2522.2,8.19235831]
[1749940399757,0.79261,2522.4,2522.2,7.39969831]
[1749940399956,0.79261,2522.4,2522.3,0.83492831]
[1749940400260,1.87712233,2522.4,2522.3,0.04229831]
[1749940400459,1.87712233,2522.4,2522.3,0.83492831]
[1749940400657,1.08451233,2522.4,2522.3,0.83492831]
[1749940400854,1.08451233,2522.4,2522.3,2.17782831]
[1749940401165,1.87710233,2522.4,2522.3,0.04229831]
[1749940402562,1.87710233,2522.4,2522.3,0.83492831]
[1749940404264,1.87710233,2522.4,2522.3,0.04229831]
[1749940405363,1.87710233,2522.4,2522.3,0.83492831]
[1749940408470,1.87710233,2522.4,2522.3,0.04229831]
[1749940408664,1.87710233,2522.4,2522.3,0.83492831]
[1749940411067,1.87710233,2522.4,2522.3,0.04229831]
[1749940411366,1.87710233,2522.4,2522.3,0.83492831]
[1749940414379,1.87710233,2522.4,2522.3,0.04229831]
[1749940415978,1.87710233,2522.4,2522.3,0.11039099]
[1749940417182,1.87710233,2522.4,2522.3,0.06809268]
[1749940417676,3.20540233,2522.4,2522.3,0.06809268]
[1749940419888,1.87710233,2522.4,2522.3,0.90301099]
[1749940420080,1.87710233,2522.4,2522.3,0.11039099]
[1749940420279,1.87710233,2522.4,2522.3,0.90301099]
[1749940420573,1.87710233,2522.4,2522.3,0.11039099]
[1749940421682,1.87710233,2522.4,2522.3,0.90302099]
[1749940424088,1.87710233,2522.4,2522.3,0.11039099]
[1749940427492,1.87710233,2522.4,2522.3,0.90302099]
[1749940427693,1.87710233,2522.4,2522.3,0.11039099]
[1749940430091,1.87710233,2522.4,2522.3,0.90301099]
[1749940430492,1.87710233,2522.4,2522.3,0.11039099]
[1749940431197,1.87710233,2522.4,2522.3,0.90301099]
[1749940431396,1.08451233,2522.4,2522.3,0.90301099]
[1749940431995,0.00595274,2522.6,2522.5,0.79256]
[1749940432198,1.08945722,2522.6,2522.5,25.47385831]
[1749940432394,0.00595274,2522.6,2522.5,35.00835831]
[1749940432893,3.95787169,2523.1,2523.0,0.7924]
[1749940433097,5.04105599,2523.1,2523.0,0.7924]
[1749940434801,0.79243,2523.0,2522.9,0.79241]
[1749940435101,0.79243,2523.0,2522.9,2.07481]
[1749940435494,3.16550169,2523.1,2523.0,0.7924]
[1749940435694,5.0394622,2523.1,2523.0,1.4726]
[1749940436797,3.95787169,2523.1,2523.0,1.4726]
[1749940437300,3.95787169,2523.1,2523.0,26.1156]
[1749940437597,3.95787169,2523.1,2523.0,0.6802]
[1749940437898,3.95787169,2523.1,2523.0,25.3072]
[1749940438096,3.95787169,2523.1,2522.8,0.00595274]
[1749940438097,0.79244,2522.9,2522.8,0.00595274]
[1749940438501,1.87326085,2522.9,2522.8,0.00595274]
[1749940438693,3.81876085,2522.9,2522.8,0.00595274]
[1749940438899,2.55796085,2522.9,2522.8,0.00595274]
[1749940439102,0.6847,2522.9,2522.8,0.79842274]
[1749940439396,0.79244,2522.9,2522.8,0.00595274]
[1749940439796,1.87291414,2522.9,2522.8,0.00595274]
[1749940446406,1.87291414,2522.9,2522.8,0.07404542]
[1749940448110,1.87291414,2522.9,2522.8,0.86651542]
[1749940448308,1.9809,2523.2,2522.9,0.79241]
[1749940448609,0.79244,2522.9,2522.8,2.14879542]
[1749940449009,1.8724561,2522.9,2522.8,2.14879542]
[1749940451613,0.79244,2522.9,2522.8,2.14879542]
[1749940452411,1.87261156,2522.9,2522.8,2.14879542]
[1749940452719,1.08017156,2522.9,2522.8,2.14879542]
[1749940452904,0.69395274,2523.3,2522.9,1.98107]
[1749940453113,1.87260279,2523.2,2523.1,0.79237]
[1749940453610,0.79234,2523.2,2523.1,0.79237]
[1749940454714,1.87294324,2523.2,2523.1,0.79237]
[1749940454912,1.08060324,2523.2,2523.1,0.79237]
[1749940455912,3.15706715,2523.7,2523.1,5.18867]
[1749940456113,2.36487715,2523.7,2523.6,0.79222]
[1749940456314,2.36487715,2523.7,2523.6,25.34922]
[1749940457014,2.36487715,2523.7,2523.6,27.27832]
[1749940457214,1e-08,2523.7,2523.6,33.78932]
[1749940457417,0.00595274,2523.9,2523.8,0.79215]
[1749940457614,0.00595274,2523.9,2523.8,3.99995]
[1749940459722,3.2078,2524.4,2524.3,0.792]
[1749940460014,3.2078,2524.4,2524.3,25.352]
[1749940460915,0.00388768,2524.6,2524.5,0.79193]
[1749940461110,0.6603,2525.3,2524.6,1.97976]
[1749940461417,0.79172,2525.2,2525.1,0.79173]
[1749940461613,0.79172,2525.2,2525.1,24.584]
[1749940461820,0.6603,2525.3,2525.1,25.37573]
[1749940462011,0.79171,2525.2,2525.1,26.02713]
[1749940462215,1.452,2525.3,2525.1,26.02713]
[1749940462418,1.452,2525.3,2525.2,0.79171]
[1749940462913,0.79165,2525.5,2525.3,0.79168]
[1749940463220,1.47171,2525.6,2525.5,0.79162]
[1749940463418,1.47171,2525.6,2525.1,26.5978]
[1749940463712,0.79162,2525.5,2525.4,0.79163]
[1749940463909,0.6801,2525.6,2525.3,6.465]
[1749940464109,3.2078,2526.1,2525.5,3.2078]
[1749940464309,0.79156,2525.7,2525.6,24.567]
[1749940464518,2.7161,2526.2,2525.5,4.00535083]
[1749940464519,0.6801,2526.2,2525.5,3.87664083]
[1749940464718,0.79159,2525.6,2525.5,7.13384083]
[1749940464918,0.79158,2525.7,2525.5,32.54346083]
[1749940465212,1.3669,2525.9,2525.5,32.54346083]
[1749940465414,1.3669,2525.9,2525.5,34.95964083]
[1749940465618,0.6801,2526.2,2525.8,3.2078]
[1749940465813,0.79147,2526.0,2525.9,24.616]
[1749940466011,0.79145,2526.1,2525.9,25.40749]
[1749940466306,0.6801,2526.2,2525.9,25.40749]
[1749940466307,1.47152,2526.2,2526.0,0.79146]
[1749940466711,0.79143,2526.1,2526.0,0.79146]
[1749940467317,3.2078,2526.4,2526.0,0.79146]
[1749940467617,0.79143,2526.1,2526.0,0.79146]
[1749940467814,3.2078,2526.4,2526.1,0.79141]
[1749940468013,0.79142,2526.2,2526.1,0.79143]
[1749940468319,0.79139,2526.3,2526.1,0.79143]
[1749940468517,0.79136,2526.4,2526.2,0.7914]
[1749940468712,0.79138,2526.3,2526.1,0.79141]
[1749940469018,0.79138,2526.3,2526.2,0.7914]
[1749940469214,0.79136,2526.4,2526.2,0.7914]
[1749940469518,0.79136,2526.4,2526.2,3.99918]
[1749940469921,0.79137,2526.3,2526.2,3.2078]
[1749940470420,0.79136,2526.4,2526.2,3.9992]
[1749940470617,0.79137,2526.3,2526.2,3.9992]
[1749940470813,0.79137,2526.3,2526.2,3.2078]
[1749940471322,5.1862,2526.4,2525.7,3.2078]
[1749940471521,0.79144,2526.1,2526.0,0.79146]
[1749940471814,0.79144,2526.1,2525.9,6.462]
[1749940471815,0.79145,2526.1,2525.9,6.462]
[1749940472012,5.18618,2526.4,2525.9,7.7465]
[1749940472214,0.79144,2526.1,2526.0,0.79144]
[1749940475523,3.2078,2526.4,2526.1,0.79143]
[1749940475524,0.79142,2526.2,2526.1,0.79143]
[1749940479428,0.79145,2526.1,2526.0,0.79143]
[1749940481329,0.79153,2525.8,2525.7,3.2078]
[1749940481535,0.79156,2525.7,2525.6,6.46]
[1749940481735,0.79156,2525.7,2525.5,25.41445083]
[1749940481736,0.79159,2525.6,2525.5,24.75155083]
[1749940481930,0.79159,2525.6,2525.5,24.63294083]
[1749940482931,0.79159,2525.6,2525.5,24.63094083]
[1749940483338,0.79159,2525.6,2525.5,0.00594083]
[1749940483532,7.14174,2525.8,2525.0,0.79177]
[1749940483533,0.79175,2525.1,2525.0,0.79177]
[1749940483739,3.2078,2525.2,2524.8,0.6413]
[1749940484037,0.79181,2524.9,2524.8,0.6413]
[1749940485344,1.3366,2525.1,2524.6,6.46594083]
[1749940485547,0.79181,2524.9,2524.8,24.655]
[1749940486235,0.79187,2524.7,2524.6,7.25782083]
[1749940486451,0.79187,2524.7,2524.6,31.10794083]
[1749940487450,0.79187,2524.7,2524.6,6.46594083]
[1749940487748,0.79187,2524.7,2524.6,31.09594083]
[1749940487947,0.79187,2524.7,2524.6,31.10894083]
[1749940491846,0.79187,2524.7,2524.6,24.62294083]
[1749940492045,0.79187,2524.7,2524.6,24.69103351]
[1749940492743,0.79186,2524.8,2524.7,0.79185]
[1749940493747,0.79187,2524.7,2524.6,0.07403351]
[1749940493952,0.79187,2524.7,2524.6,24.68203351]